Cogmind - Beta 16 @@@ ROGUE MODE // 2025.12.10 @ 18:27:17 Player: Mozco Result: Self-destructed Performance ------------- Evolutions (3) 1500 Regions Visited (9) 1800 Robots Destroyed (108) 540 Value Destroyed (3324) 3324 Prototype IDs (42) 840 Alien Tech Used (0) 0 Bonus (1494) 1494 TOTAL SCORE: 9498 Bonus ------- High Alert Combat Kills 234 Follower Combat Kills 280 Entered Garrisons 400 Used RIF Installer 500 Aligned with FarCom 300 Friendly Fire -220 Cogmind --------- Core Integrity 616/700 Matter 63/300 Energy 265/265 System Corruption 3% Temperature Cool (17) Movement Rolling (110) Ox2 Location -7/Factory Parts ------- > --- POWER (1) -------- Improved Ion Engine > --- PROPULSION (2) --- Wheel Compact Wheel > --- UTILITY (7) ------ High-capacity Storage Unit Structural Scanner Improved Power Shielding Improved Propulsion Shielding Relay Coupler [Grunt] (12) Improved Field Recycling Unit > --- WEAPON (3) ------- Minigun Mini Assault Cannon > --- INVENTORY (20) --- Light Deuterium Engine Light Nuclear Core Wheel Modified TNC Improved Medium Armor Plating Relay Coupler [NC] (32) Relay Coupler [Grunt] (24) Relay Coupler [Duelist] (18) Relay Coupler [Hunter] (16) System Restoration Module Trap Extractor (1/4 Fusion Bomb) Improved Trap Extractor (2/6 Shock) Trap Reconfigurator Decoy Drone Bay (16/16) AWS/Gauss Advanced EMP Blaster Heavy Missile Launcher Plasma Cutter Peak State ------------ > --- POWER ------------ Light Nuclear Core > --- PROPULSION ------- Wheel Compact Wheel > --- UTILITY ---------- High-capacity Storage Unit Machine Analyzer Improved Light Armor Plating Hacking Suite Trap Reconfigurator > --- WEAPON ----------- Ion Cannon AWS/Gauss > --- INVENTORY -------- Light Ion Engine Wheel Wheel Compact Wheel Structural Scanner Modified TNC Propulsion Shielding Light Armor Plating Improved Light Armor Plating Hardlight Generator Hacking Suite Trap Extractor Trap Extractor Recalibrator Decoy Drone Bay Particle Cannon Particle Cannon Datajack Plasma Cutter [Rating: 48] Favorites ----------- Power Light Nuclear Core Engine Light Ion Engine Power Core Light Nuclear Core Propulsion Wheel Treads Light Treads Leg Aluminum Leg Wheel Wheel Utility High-capacity Storage Unit Device Trap Scanner Storage High-capacity Storage Unit Processor Machine Analyzer Hackware Relay Coupler [Grunt] Protection Light Armor Plating Weapon Particle Cannon Energy Gun Small Laser Energy Cannon Particle Cannon Ballistic Gun Light Assault Rifle Ballistic Cannon Mini Assault Cannon Launcher Improved Grenade Launcher Special Melee Weapon Datajack Build | -11 -10 -10 -10 -9 -8 -8 -8 -8 -7 ------- Run | Yrd Mat Min Exi Min Mat Gar Mat Gar Fac Slots Evolved 6 | . . . . . 4 . . . 2 Power . | . . . . . . . . . . Propulsion . | . . . . . . . . . . Utility 5 | . . . . . 3 . . . 2 Weapon 1 | . . . . . 1 . . . . Parts Attached 76 | 5 11 . 1 2 24 4 2 19 8 Power 6 | . 1 . . . 2 1 . 2 . Engine 3 | . 1 . . . 1 . . 1 . Core 3 | . . . . . 1 1 . 1 . Reactor . | . . . . . . . . . . Propulsion 17 | 2 3 . . . 5 . 1 3 3 Treads 2 | . . . . . . . . 2 . Leg 1 | . . . . . . . . 1 . Wheel 14 | 2 3 . . . 5 . 1 . 3 Hover . | . . . . . . . . . . Flight . | . . . . . . . . . . Utility 27 | 1 3 . . 1 13 1 . 5 3 Device 11 | . 1 . . . 7 . . 1 2 Storage 2 | 1 1 . . . . . . . . Processor 1 | . . . . . 1 . . . . Hackware 4 | . . . . . 2 . . 2 . Protection 9 | . 1 . . 1 3 1 . 2 1 Artifact . | . . . . . . . . . . Weapon 26 | 2 4 . 1 1 4 2 1 9 2 Energy Gun 5 | 1 . . . . 1 . 1 2 . Energy Cannon 4 | . 2 . . . 2 . . . . Ballistic Gun 12 | 1 2 . . 1 1 . . 6 1 Ballistic Cannon 2 | . . . . . . 1 . . 1 Launcher 2 | . . . . . . 1 . 1 . Special Weapon . | . . . . . . . . . . Impact Weapon . | . . . . . . . . . . Slashing Weapon . | . . . . . . . . . . Piercing Weapon . | . . . . . . . . . . Special Melee Weapon 1 | . . . 1 . . . . . . Unidentified Prototypes 3 | . . . . . 2 . . . 1 Parts Lost 28 | . . 2 . . . 6 3 15 2 Power 3 | . . . . . . 2 . 1 . Propulsion 8 | . . 1 . . . 2 2 3 . Utility 7 | . . 1 . . . 1 . 4 1 Weapon 10 | . . . . . . 1 1 7 1 Highest Loss Streak 7 | . . 1 . . . 2 3 7 2 To Critical Strikes . | . . . . . . . . . . Average Backups 17 | 1 15 19 18 18 18 16 16 17 17 Power 1 | . 1 1 1 1 1 . . 1 1 Propulsion 1 | . 2 2 3 3 2 1 1 . . Utility 9 | . 5 8 9 9 10 9 9 11 11 Weapon 3 | . 5 6 4 3 2 2 3 3 3 Tool/Special . | . . . . . . . . . . Unused Backups 27 | . . 1 1 . 6 . . 1 18 Power 3 | . . . . . 1 . . . 2 Propulsion 2 | . . . . . 2 . . . . Utility 14 | . . . . . 2 . . 1 11 Weapon 7 | . . 1 1 . 1 . . . 4 Tool/Special 1 | . . . . . . . . . 1 Average Slot Usage (%) 88 | . 94 88 80 85 87 91 95 85 90 Engine 5 | . 11 14 14 14 . 2 9 2 7 Core 3 | . . . . . 8 6 . 3 . Treads 1 | . . . . . . . . 3 3 Leg 1 | . . . . . . . . 4 3 Wheel 17 | . 28 26 28 28 17 17 16 6 7 Device 9 | . 2 . . . 11 17 20 5 14 Storage 10 | . 14 14 14 14 9 9 9 9 7 Processor 1 | . . . . . 6 . . . . Hackware 3 | . . . . . 3 . . 10 7 Protection 13 | . 9 4 . 14 13 18 15 18 15 Energy Gun 1 | . 4 . . . . . . 4 . Energy Cannon 9 | . 19 28 15 1 10 11 9 . . Ballistic Gun 7 | . 4 . . 13 6 2 . 11 16 Ballistic Cannon 1 | . . . . . . 2 9 2 5 Launcher 1 | . . . . . . 3 6 1 . Peak Build Rating 48 | 5 11 11 14 26 48 40 38 36 42 Average Rating 27 | 3 9 10 11 25 36 34 30 27 35 On Entrance 19 | . 5 11 11 14 26 38 37 32 23 Avg Prop Armor Cover (%) 5 | . . . . . . . . 5 5 Naked Turns . | . . . . . . . . . . Heaviest Build 76 | 7 52 52 51 56 72 73 73 72 76 Greatest Support 32 | 26 26 26 26 26 32 20 32 32 26 Greatest Overweight (x) 15 | . 1 3 1 2 4 6 7 15 6 Average Overweight (x) 2 | . . 1 1 2 2 3 2 2 2 Largest Inventory Capacity 20 | 8 20 20 20 20 20 20 20 20 20 Average Capacity 19 | 6 17 20 20 20 20 20 20 20 20 Most Carried 20 | 3 20 20 20 20 20 20 20 20 20 Average Carried 18 | 1 15 19 19 19 19 17 18 19 19 Final Capacity 20 | 8 20 20 20 20 20 20 20 20 20 Final Carried 20 | 3 20 20 20 20 20 16 20 20 20 Class Distribution -------------------- 36% | Mutant 20% | Scavenger-Tank 19% | Tank 12% | Scavenger-Mutant 4% | Skirmisher Dominant Class ---------------- Mutant | -10/Materials Mutant | -10/Mines Mutant | -10/Exiles Mutant | -9/Mines Tank | -8/Materials Tank | -8/Garrison Mutant | -8/Materials Scavenger-Mutant | -8/Garrison Scavenger-Tank | -7/Factory Resources | -11 -10 -10 -10 -9 -8 -8 -8 -8 -7 ----------- Run | Yrd Mat Min Exi Min Mat Gar Mat Gar Fac Matter Collected 2115 | 250 222 10 . 25 453 336 161 574 84 Remotely . | . . . . . . . . . . Salvage Created 3373 | . 959 215 . 42 893 632 96 425 111 Parts 210 | . 56 16 . 6 58 29 7 28 10 Haulers Intercepted 2 | . 2 . . . . . . . . Recyclers Shooed 1 | . 1 . . . . . . . . Parts Field Recycled 9 | . . . . . . . . . 9 Retrieved Matter 146 | . . . . . . . . . 146 Parts Self-Destructed . | . . . . . . . . . . Prevented . | . . . . . . . . . . Parts Restored 1 | . . . . . 1 . . . . Broken 1 | . . . . . 1 . . . . Kills | -11 -10 -10 -10 -9 -8 -8 -8 -8 -7 ------- Run | Yrd Mat Min Exi Min Mat Gar Mat Gar Fac Combat Hostiles Destroyed 83 | . 18 7 . 3 12 20 5 17 1 Guns 34 | . 9 . . 3 5 7 . 9 1 Cannons 33 | . 9 7 . . 7 4 3 3 . AOE 14 | . . . . . . 7 2 5 . Classes Destroyed 14 | . 9 . . . 4 . . 1 . Worker 6 | . 3 . . . 2 . . . 1 Builder 5 | . 1 . . . 2 . 1 . 1 Tunneler 1 | . 1 . . . . . . . . Hauler 2 | . 2 . . . . . . . . Recycler 2 | . 1 . . . . . . . 1 Mechanic 1 | . . . . . 1 . . . . Operator 4 | . 3 . . . 1 . . . . Watcher 3 | . 2 . . . 1 . . . . Swarmer 30 | . 6 3 . 3 . 8 3 7 . Grunt 33 | . 12 4 . . 6 8 2 1 . Brawler 4 | . . . . . 2 2 . . . Sentry 9 | . . . . . 3 2 . 4 . Hunter 1 | . . . . . 1 . . . . Programmer 6 | . . . . . . . . 5 1 Thug 1 | . . . . . 1 . . . . Best Kill Streak 12 | . 12 3 . 3 4 5 3 5 2 Combat Bots Only 9 | . 9 3 . 3 3 5 3 5 1 Max Kills in Single Turn 3 | . 1 1 . 1 1 3 2 3 1 Gunslinging . | . . . . . . . . . . Exploded 3 | . . . . . . 3 2 3 . Melee . | . . . . . . . . . . Uniques/NPCs Destroyed . | . . . . . . . . . . Combat | -11 -10 -10 -10 -9 -8 -8 -8 -8 -7 -------- Run | Yrd Mat Min Exi Min Mat Gar Mat Gar Fac Hostile Shots Fired 431 | . 75 15 . 10 41 46 25 180 39 Missed 117 | . 21 3 . . 12 8 6 51 16 Hits 314 | . 54 12 . 10 29 38 19 129 23 Melee 1 | . . . . . . . . 1 . Projectile 313 | . 54 12 . 10 29 38 19 128 23 Critical Strikes 15 | . . . . . 3 3 1 7 1 Actively Blocked 2 | . . . . . . . . 2 . Part Disruptions 3 | . . . . . . . . 2 1 Damage Taken 4172 | . 608 140 . 71 380 558 249 1731 435 Core 707 | . 170 24 . 15 12 38 27 337 84 Absorbed by Shields 196 | . . . . . 84 64 20 28 . Redirected to Shielding 186 | . 35 15 . . . . . 73 63 Regen/Repaired (Parts) 206 | . . . . . 206 . . . . Core Remaining (%) 46 | 100 . . . 16 . . . 24 . Volleys Fired 276 | . 65 11 . . 59 36 13 71 21 Largest 3 | . 2 2 . . 2 2 2 3 3 Hottest 179 | . 136 136 . . 128 128 116 179 88 Shots Fired 559 | . 127 21 . 5 128 87 25 110 56 Gun 263 | . 66 . . 5 49 35 . 69 39 Cannon 286 | . 61 21 . . 79 48 24 36 17 Launcher 10 | . . . . . . 4 1 5 . Special . | . . . . . . . . . . Kinetic 260 | . 34 . . 5 49 35 12 69 56 Thermal 271 | . 93 21 . . 79 48 12 18 . Explosive 10 | . . . . . . 4 1 5 . Electromagnetic 18 | . . . . . . . . 18 . Robot Hit Streak 14 | . 7 4 . 6 11 14 3 7 5 Robot Miss Streak 5 | . 3 2 . . 3 2 3 5 5 Penetration Max 1 | . . . . . . . 1 . . Secondary Targets 2 | . 2 . . . . . . . . Max Gunslinging Chain 1 | . 1 . . . . . . . . Autonomous 91 | . . . . 5 50 36 . . . Shots Hit Robots 339 | . 80 12 4 5 75 57 12 63 31 Core Hits 141 | . 38 9 . 3 27 28 7 24 5 Critical Kills 5 | . . . . . . 2 2 1 . Critical Parts Destroyed 7 | . . . . . . . 2 4 1 Critical Strikes 14 | . . . . . . 2 4 7 1 Burn 1 | . . . . . . . . 1 . Meltdown 2 | . . . . . . 2 . . . Destroy 11 | . . . . . . . 4 6 1 Melee Attacks 10 | . . . 4 . . . . 6 . Impact . | . . . . . . . . . . Slashing . | . . . . . . . . . . Piercing . | . . . . . . . . . . Sneak Attacks 4 | . . . 4 . . . . . . Combat Hostiles . | . . . . . . . . . . Follow-up Attacks . | . . . . . . . . . . Damage Inflicted 8126 | . 1316 244 . 146 1987 1885 435 1484 629 Guns 3616 | . 556 . . 146 1087 705 . 765 357 Cannons 3523 | . 760 244 . . 900 612 290 447 270 Explosions 985 | . . . . . . 568 145 272 . Melee . | . . . . . . . . . . Ramming 2 | . . . . . . . . . 2 Kinetic 3921 | . 295 . . 146 1087 705 164 897 627 Thermal 3074 | . 1021 244 . . 900 612 126 171 . Explosive 985 | . . . . . . 568 145 272 . Electromagnetic 144 | . . . . . . . . 144 . Impact . | . . . . . . . . . . Slashing . | . . . . . . . . . . Piercing . | . . . . . . . . . . Highest Corruption 13 | . 3 3 3 3 3 3 3 13 3 Average Corruption 3 | . 2 3 3 3 3 3 3 6 1 Corruption Purged . | . . . . . . . . . . Corruption Blocked . | . . . . . . . . . . Effects 102 | . 3 5 10 2 18 19 5 35 5 Message Errors 21 | . . 2 1 1 4 5 1 7 . Matter Fused 29 | . 1 1 3 1 3 5 2 11 2 Heat Flow Errors 13 | . . . 3 . 4 . 1 5 . Energy Discharges 12 | . 1 1 1 . 4 . . 5 . Parts Rejected 2 | . 1 . . . . 1 . . . Data Loss (minor) 11 | . . . 1 . 1 1 1 4 3 Data Loss (major) 1 | . . . . . 1 . . . . Misfires 7 | . . . . . . 5 . 2 . Alerts 2 | . . . 1 . 1 . . . . Weapon Failures 4 | . . 1 . . . 2 . 1 . Overload Shots . | . . . . . . . . . . Overflow Damage 87 | . 23 . . . . 23 9 6 26 Projectiles 76 | . 23 . . . . 12 9 6 26 Explosions 11 | . . . . . . 11 . . . Melee . | . . . . . . . . . . Knockbacks 3 | . . . . . . . 1 . 2 Impact . | . . . . . . . . . . Kinetic 2 | . . . . . . . 1 . 1 Secondary 1 | . . . . . . . . . 1 Self-Inflicted Damage 134 | . . . . . . 109 . 24 1 Shots 4 | . . . . . . 2 . 2 . Rammed 1 | . . . . . . . . . 1 Targets Rammed 1 | . . . . . . . . . 1 Kicked . | . . . . . . . . . . Crushed . | . . . . . . . . . . Highest Temperature 311 | . 249 243 180 . 310 81 311 258 21 Average Temperature 80 | . 77 109 72 . 96 33 142 81 9 Received Heat Transfer 1346 | . 261 57 . . 209 243 147 429 . Effects 5 | . . . . . 5 . . . . Energy Bleed 2 | . . . . . 2 . . . . Interference 3 | . . . . . 3 . . . . Siege Activations . | . . . . . . . . . . Martial Activations . | . . . . . . . . . . Shielding Activations . | . . . . . . . . . . Robots Disrupted . | . . . . . . . . . . Combat Hostiles . | . . . . . . . . . . Robots Corrupted . | . . . . . . . . . . Combat Hostiles . | . . . . . . . . . . Parts Fried . | . . . . . . . . . . Impact Corruptions . | . . . . . . . . . . Robots Melted 2 | . . . . . . 2 . . . Combat Hostiles 2 | . . . . . . 2 . . . Parts Melted 2 | . 1 1 . . . . . . . Heat Transferred 5632 | . 1969 444 . . 1517 1073 222 407 . Parts Sabotaged . | . . . . . . . . . . Parts Stolen . | . . . . . . . . . . Parts Stripped . | . . . . . . . . . . Power Chain Reactions . | . . . . . . . . . . Alert | -11 -10 -10 -10 -9 -8 -8 -8 -8 -7 ------- Run | Yrd Mat Min Exi Min Mat Gar Mat Gar Fac Maximum Alert Level 3 | . 1 . . . 1 3 2 3 2 Low Security (%) 44 | 100 55 100 . 100 78 9 . . 55 Level 1 26 | . 44 . . . 21 25 61 23 27 Level 2 18 | . . . . . . 33 38 46 17 Level 3 10 | . . . . . . 31 . 29 . Level 4 . | . . . . . . . . . . Level 5 . | . . . . . . . . . . High Security . | . . . . . . . . . . Max Security . | . . . . . . . . . . Peak Influence 870 | . 251 182 . 73 283 761 434 870 455 Initial 451 | . . 82 . . . 172 370 275 451 Average 283 | . 175 133 . 36 78 504 376 563 196 Influence Increases 3263 | . 584 170 . 73 599 669 244 795 129 Destroy 0b10 Robot/C 1820 | . 360 140 . 60 300 460 120 360 20 Destroy 0b10 Robot/NC 120 | . 65 . . . 35 . 5 . 15 Destroy Leader 300 | . 88 30 . 10 102 20 20 20 10 Allied During Kill 29 | . . . . . 8 13 7 1 . Trap Triggered on 0b10 50 | . . . . . . 40 . . 10 Successful Hack 150 | . 9 . . . 35 21 . 30 55 Select Force Hacks 30 | . . . . . . . 30 . . Disable Machine 135 | . 30 . . . 45 . 45 . 15 Anti-Garrison Action 200 | . . . . . . . . 200 . Destroy Structure 189 | . 2 . . 3 29 55 17 79 4 Lose Combat Pursuer 240 | . 30 . . . 45 60 . 105 . Influence Decreases 3248 | . 372 300 82 70 336 174 581 359 974 Entered New Map 1258 | . . 130 82 . 3 94 391 149 409 Time Decay 1417 | . 372 150 . 70 327 . 100 . 398 Lost Part 277 | . . 20 . . . 60 30 150 17 Lost Ally 146 | . . . . . 6 20 60 60 . Purge Threat 150 | . . . . . . . . . 150 Squads Dispatched 13 | . 5 . . . 2 . 3 . 3 Investigation 3 | . 2 . . . . . 1 . . Extermination 2 | . . . . . . . . . 2 Reinforcement 6 | . 3 . . . 2 . . . 1 Assault . | . . . . . . . . . . Garrison 2 | . . . . . . . 2 . . Intercept . | . . . . . . . . . . Searches Triggered . | . . . . . . . . . . Construction Impeded 1 | . . . . . 1 . . . . Haulers Reinforced . | . . . . . . . . . . Active Scanning Responses . | . . . . . . . . . . Cargo Convoy Interrupts 1 | . . . . . . . . . 1 Stealth | -11 -10 -10 -10 -9 -8 -8 -8 -8 -7 --------- Run | Yrd Mat Min Exi Min Mat Gar Mat Gar Fac Distress Signals 6 | . 2 . . . 2 . 2 . . Communications Jammed . | . . . . . . . . . . Distress Signals . | . . . . . . . . . . Times Spotted 142 | . 30 7 . 3 28 23 9 38 4 Peak Tracking Total 10 | . 6 3 . 3 4 5 6 10 3 Tactical Retreats 15 | . 3 . . . 3 2 . 7 . Traps | -11 -10 -10 -10 -9 -8 -8 -8 -8 -7 ------- Run | Yrd Mat Min Exi Min Mat Gar Mat Gar Fac Traps Triggered 12 | . 3 . . . . 7 . 2 . Indirectly . | . . . . . . . . . . Trap Hack Attempts . | . . . . . . . . . . Triggered . | . . . . . . . . . . Disarmed . | . . . . . . . . . . Reprogrammed . | . . . . . . . . . . Reused 5 | . . . . . . 4 . . 1 Traps Reconfigurated 28 | . . . . . 11 5 . . 12 Traps Extracted 7 | . . . . . 6 1 . . . Installed 4 | . . . . . . 4 . . . Triggered 5 | . . . . . . 4 . . 1 Most Traps Carried 6 | . . . . . 6 6 3 3 3 Machines | -11 -10 -10 -10 -9 -8 -8 -8 -8 -7 ---------- Run | Yrd Mat Min Exi Min Mat Gar Mat Gar Fac Machines Disabled 11 | . 2 . . . 3 . 3 2 1 Max in Single Turn 1 | . 1 . . . 1 . 1 1 1 Garrison Relay 2 | . . . . . . . . 2 . Machines Repaired . | . . . . . . . . . . Machines Dismantled . | . . . . . . . . . . Machines Sabotaged . | . . . . . . . . . . Overloaded Fab Kills . | . . . . . . . . . . Hacking | -11 -10 -10 -10 -9 -8 -8 -8 -8 -7 --------- Run | Yrd Mat Min Exi Min Mat Gar Mat Gar Fac Machines Accessed 31 | . 5 1 2 . 9 3 1 2 8 Terminals 23 | . 5 . . . 6 3 . 2 7 Fabricators . | . . . . . . . . . . Repair Stations 1 | . . . . . 1 . . . . Recycling Units . | . . . . . . . . . . Scanalyzers 2 | . . . . . 1 . . . 1 Garrison Access 2 | . . . . . 1 . 1 . . Total Hacks 90 | . 18 1 2 . 36 6 3 3 21 Successful 52 | . 6 1 2 . 26 2 2 2 11 Failed 37 | . 12 . . . 9 4 1 1 10 Catastrophic 5 | . . . . . 1 . . . 4 Database Lockouts 1 | . . . . . 1 . . . . Manual 49 | . 17 . 1 . 20 . 2 . 9 Terminals 64 | . 18 . . . 22 6 . 3 15 Fabricators . | . . . . . . . . . . Repair Stations 9 | . . . . . 9 . . . . Recycling Units . | . . . . . . . . . . Scanalyzers 10 | . . . . . 4 . . . 6 Garrison Access 4 | . . . . . 1 . 3 . . Terminal Hacks 17 | . 4 1 2 . 5 2 . 2 1 Record 1 | . . . 1 . . . . . . Part Schematic 2 | . . . . . 2 . . . . Robot Analysis 1 | . 1 . . . . . . . . Open Door 2 | . . 1 . . . 1 . . . Emergency Access Points 1 | . . . . . . 1 . . . Unreport Threat 1 | . . . . . . . . . 1 Locate Traps 4 | . 2 . . . 2 . . . . Zone Layout 2 | . 1 . . . 1 . . . . Patrol Navigation 1 | . . . . . . . . 1 . Security Stations 1 | . . . . . . . . 1 . Proto ID Catalog 1 | . . . 1 . . . . . . Fabricator Hacks . | . . . . . . . . . . Repair Station Hacks 8 | . . . . . 8 . . . . Scan Component 4 | . . . . . 4 . . . . Repair 4 | . . . . . 4 . . . . Recycling Unit Hacks . | . . . . . . . . . . Scanalyzer 9 | . . . . . 3 . . . 6 Insert Component 3 | . . . . . 2 . . . 1 Analyze 4 | . . . . . 1 . . . 3 Retrieve Study 2 | . . . . . . . . . 2 Garrison Access Hacks 2 | . . . . . 1 . 1 . . Unlock Access 2 | . . . . . 1 . 1 . . Unauthorized Hacks 16 | . 2 . . . 9 . 1 . 4 Terminals 15 | . 2 . . . 9 . . . 4 Track 1 | . . . . . 1 . . . . Assimilate 2 | . . . . . 2 . . . . Botnet 10 | . 2 . . . 4 . . . 4 Disrupt 1 | . . . . . 1 . . . . Operators 1 | . . . . . 1 . . . . Fabricators . | . . . . . . . . . . Repair Stations . | . . . . . . . . . . Recycling Units . | . . . . . . . . . . Scanalyzers . | . . . . . . . . . . Garrison Access 1 | . . . . . . . 1 . . Eject 1 | . . . . . . . 1 . . Data Cores Recovered 1 | . . . . . 1 . . . . Used 1 | . . . . . 1 . . . . Hacking Detections 24 | . 5 . . . 7 2 1 1 8 Full Trace Events 2 | . 2 . . . . . . . . Feedback Events . | . . . . . . . . . . Feedback Blocked . | . . . . . . . . . . Robot Schematics Acquired . | . . . . . . . . . . Robots Built . | . . . . . . . . . . Authchips . | . . . . . . . . . . Time . | . . . . . . . . . . Total Robot Build Rating . | . . . . . . . . . . Part Schematics Acquired 4 | . . . . . 3 . . . 1 Parts Built . | . . . . . . . . . . Authchips . | . . . . . . . . . . Time . | . . . . . . . . . . Total Part Build Rating . | . . . . . . . . . . Part Studies Acquired 2 | . . . . . . . . . 2 Parts Repaired 4 | . . . . . 4 . . . . Time 116 | . . . . . 116 . . . . Parts Recycled . | . . . . . . . . . . Recycled Matter . | . . . . . . . . . . Retrieved Matter . | . . . . . . . . . . Retrieved Components . | . . . . . . . . . . Parts Scanalyzed 2 | . . . . . 1 . . . 1 Part Schematics Acquired 2 | . . . . . 1 . . . 1 Parts Damaged . | . . . . . . . . . . Bothacking | -11 -10 -10 -10 -9 -8 -8 -8 -8 -7 ------------ Run | Yrd Mat Min Exi Min Mat Gar Mat Gar Fac Used RIF Installer 1 | . . . . . . 1 . . . Robots Hacked 8 | . . . 4 . . . . 4 . Non-combat 3 | . . . 3 . . . . . . Combat 5 | . . . 1 . . . . 4 . Robot Hacks Applied 8 | . . . 4 . . . . 4 . parse_system 4 | . . . 4 . . . . . . overwrite_iff 3 | . . . . . . . . 3 . streamctrl_high 1 | . . . . . . . . 1 . Relay Couplers Released 11 | . . . . . . . 3 8 . Ejected 3 | . . . . . . . 3 . . Machine Destruction 8 | . . . . . . . . 8 . Attached 2 | . . . . . . . . 2 . Fabnet Peak Effective % . | . . . . . . . . . . Robots Rewired 3 | . . . . . . 3 . . . Allies Hacked . | . . . . . . . . . . Hacks Repelled . | . . . . . . . . . . Allies | -11 -10 -10 -10 -9 -8 -8 -8 -8 -7 -------- Run | Yrd Mat Min Exi Min Mat Gar Mat Gar Fac Total Allies 10 | . . . . 2 . 4 . 4 . Largest Group 3 | . . . . 2 2 3 3 1 . Highest-Rated Group 45 | . . . . 45 45 39 15 16 . Highest-Rated Ally 39 | . . . . 31 31 39 5 16 . Total Orders . | . . . . . . . . . . Ally Attacks 55 | . . . . . 9 13 23 10 . Total Damage 638 | . . . . . 172 159 127 180 . Kills 8 | . . . . . 3 3 1 1 . Allies Corrupted . | . . . . . . . . . . Allies Melted . | . . . . . . . . . . Intel | -11 -10 -10 -10 -9 -8 -8 -8 -8 -7 ------- Run | Yrd Mat Min Exi Min Mat Gar Mat Gar Fac Active Infowar (turns) 2876 | . 156 . . . 1376 418 134 . 792 Structural 732 | . 156 . . . 1 89 131 . 355 Traps 1459 | . . . . . 269 329 71 . 790 Machine Analysis 1106 | . . . . . 1106 . . . . Robot Analysis Total 1 | . 1 . . . . . . . . Derelict Logs Recovered 1 | . . 1 . . . . . . . Drone Launches . | . . . . . . . . . . Drone Recoveries . | . . . . . . . . . . Exploration | -11 -10 -10 -10 -9 -8 -8 -8 -8 -7 ------------- Run | Yrd Mat Min Exi Min Mat Gar Mat Gar Fac Turns Passed 7272 | 69 934 307 578 151 1586 1164 209 1233 1041 Spaces Moved 4201 | 66 638 250 534 118 840 686 114 454 501 Core 8 | 1 . . . . . . . 7 . Treads 285 | . . . . . . . . 149 136 Legs 15 | . . . . . . . . 15 . Wheels 3893 | 65 638 250 534 118 840 686 114 283 365 Hover . | . . . . . . . . . . Flight . | . . . . . . . . . . Fastest Speed 50 | 50 90 105 105 120 115 110 115 115 110 Average Speed 134 | 89 102 106 105 120 122 127 124 216 187 Slowest Speed 800 | 100 105 145 105 120 160 170 185 800 400 Overloaded Moves . | . . . . . . . . . . Propulsion Burnouts . | . . . . . . . . . . Robots Hopped . | . . . . . . . . . . Potential Cave-ins . | . . . . . . . . . . Cave-ins Triggered . | . . . . . . . . . . Exploration Rate (%) 43 | 4 90 56 69 30 53 62 8 44 14 Regions Visited 9 Branch Regions 3 Pre-discovered Areas 2 | . . 1 1 . . . . . . Known Exits Taken 3 | . . . 1 . 1 . 1 . . Unknown Exits Taken 4 | 1 1 1 . 1 . . . . . Scrap Searched 1 | . . 1 . . . . . . . Spaces Dug 20 | . . . . . 4 . 16 . . Terrain Destroyed 141 | . . . . 5 31 22 22 57 4 Melee . | . . . . . . . . . . Projectile 57 | . . . . 5 31 1 6 10 4 AOE 84 | . . . . . . 21 16 47 . Terrain Rammed . | . . . . . . . . . . Walls Destroyed . | . . . . . . . . . . Machines Disabled . | . . . . . . . . . . Actions | -11 -10 -10 -10 -9 -8 -8 -8 -8 -7 --------- Run | Yrd Mat Min Exi Min Mat Gar Mat Gar Fac Total 5364 | 73 787 269 550 128 1312 923 153 599 570 Wait 560 | . 56 4 . 4 340 111 10 26 9 Move 4193 | 65 637 249 533 117 840 685 113 453 501 Hop . | . . . . . . . . . . Pick Up 66 | 3 13 2 4 3 12 1 7 9 12 Fast Attach 38 | 5 4 . 1 . 10 3 . 11 4 Attach 28 | . 1 1 . 2 4 6 3 7 4 Detach 1 | . 1 . . . . . . . . Swap 66 | . 7 . 2 . 29 10 7 7 4 Drop 55 | . 3 2 6 2 18 1 . 9 14 Fire 276 | . 65 11 . . 59 36 13 71 21 Melee 10 | . . . 4 . . . . 6 . Ram 1 | . . . . . . . . . 1 Kick . | . . . . . . . . . . Crush . | . . . . . . . . . . Escape Stasis 48 | . . . . . . 48 . . . Rewire 18 | . . . . . . 18 . . . Trap 4 | . . . . . . 4 . . . Miscellaneous . | . . . . . . . . . . Route ------- -11/Scrapyard -10/Materials (discovered 5 exits: [*Mat x3] / *Min x2) -10/Mines (discovered 3 exits: [*Mat x2] / *Exi) -10/Exiles (discovered 2 exits: *Min x2) -9/Mines -8/Materials (discovered 2 exits: *Fac / Gar) -8/Garrison (discovered 4 exits: *Mat x4) -8/Materials -8/Garrison -7/Factory (discovered 1 exit: [*Sto]) History --------- Turn | Location | Event 19 | -11/Scrapyard | Discovered new exit (range 15) 70 | -11/Scrapyard | Entered Materials 205 | -10/Materials | Destroyed 9 combat bots 299 | -10/Materials | Discovered new exit (range 7) 314 | -10/Materials | Build established: Mutant 480 | -10/Materials | Discovered new exit (range 8) 531 | -10/Materials | Discovered new exit (range 16) 593 | -10/Materials | Core integrity fell below 50% 652 | -10/Materials | Discovered new exit (range 15) 721 | -10/Materials | Discovered new exit (range 16) 870 | -10/Materials | Derelicts attacked the area 1004 | -10/Materials | Entered Mines 1158 | -10/Mines | Learned location of Storage (-7) 1168 | -10/Mines | Discovered new exit (range 7) 1236 | -10/Mines | Found the Drone Emporium 1251 | -10/Mines | Found Prototype Device 1291 | -10/Mines | Discovered new exit (range 8) 1306 | -10/Mines | Deemed a non-threat by the Exiles lab entrance 1306 | -10/Mines | Discovered new exit (range 5) 1311 | -10/Mines | Entered Exiles 1312 | -10/Exiles | Identified exit to Mines 1337 | -10/Exiles | Met 8R-AWN 1356 | -10/Exiles | Met EX-HEX 1401 | -10/Exiles | Learned location of Zion (-7) 1418 | -10/Exiles | Met EX-BIN 1432 | -10/Exiles | Aligned with FarCom system 1433 | -10/Exiles | Given EX-Vault access code 1458 | -10/Exiles | Opened EX-Vault 1489 | -10/Exiles | Warned to stay clear of 0b10 Research branches 1516 | -10/Exiles | Found Modified TNC 1520 | -10/Exiles | Found Trap Reconfigurator 1522 | -10/Exiles | Found AWS/Gauss 1665 | -10/Exiles | Met EX-DEC 1889 | -10/Exiles | Stole three prototypes: Modified TNC, Trap Reconfigurator, AWS/Gauss 1889 | -10/Exiles | Entered Mines 1892 | -9/Mines | Core integrity fell below 20% 1918 | -9/Mines | Met a Derelict bent on vengeance 2034 | -9/Mines | Discovered new exit (range 8) 2040 | -9/Mines | Entered Materials 2040 | -8/Materials | Accompanied by 2 allies 2040 | -8/Materials | Evolved 4 slots: Utility x3, Weapon x1 2045 | -8/Materials | Led the pair of lost Derelicts to an unsafe place 2143 | -8/Materials | Repaired Wheel 2178 | -8/Materials | Repaired Particle Cannon 2210 | -8/Materials | Repaired Particle Cannon 2236 | -8/Materials | Repaired Com. Wheel 2489 | -8/Materials | Central database locked down 2641 | -8/Materials | Discovered new exit (range 16) 2986 | -8/Materials | Identified Decoy Drone Bay 3159 | -8/Materials | AWS/Gauss suddenly broke down 3626 | -8/Materials | Identified exit to Garrison 3626 | -8/Materials | Entered Garrison 3673 | -8/Garrison | Installed Relay Interface Framework 3700 | -8/Garrison | Triggered checkpoint 3790 | -8/Garrison | Triggered checkpoint 3981 | -8/Garrison | AWS/Gauss suddenly broke down 4145 | -8/Garrison | Rescued a captive Derelict 4164 | -8/Garrison | Discovered new exit (range 10) 4216 | -8/Garrison | Triggered checkpoint 4266 | -8/Garrison | Build established: Scavenger-Mutant 4278 | -8/Garrison | Triggered checkpoint 4408 | -8/Garrison | Discovered new exit (range 10) 4420 | -8/Garrison | Triggered checkpoint 4442 | -8/Garrison | Discovered new exit (range 6) 4604 | -8/Garrison | Discovered new exit (range 14) 4790 | -8/Garrison | Entered Materials 4790 | -8/Materials | Accompanied by 3 allies 4891 | -8/Materials | Garrison activated, responded to threat 4933 | -8/Materials | Lost 3 allies 4958 | -8/Materials | Lost 3 parts (2n1w) 4980 | -8/Materials | Identified exit to Garrison 4999 | -8/Materials | Entered Garrison 5013 | -8/Garrison | Triggered checkpoint 5094 | -8/Garrison | Learned Factory security intel 5103 | -8/Garrison | Garrison Relay disabled 5349 | -8/Garrison | Lost 4 parts (1n3w) 5497 | -8/Garrison | Triggered checkpoint 5523 | -8/Garrison | Triggered checkpoint 5591 | -8/Garrison | Core integrity fell below 50% 5639 | -8/Garrison | Lost 7 parts (1p2n1u3w) 5834 | -8/Garrison | Garrison Relay disabled 6203 | -8/Garrison | Discovered new exit (range 3) 6232 | -8/Garrison | System corruption reached 10% 6232 | -8/Garrison | Entered Factory 6232 | -7/Factory | Evolved 2 slots: Utility x2 6234 | -7/Factory | FarCom data flow suspended 6329 | -7/Factory | Build established: Scavenger-Tank 6426 | -7/Factory | Discovered new exit (range 10) 7255 | -7/Factory | Cargo convoy interrupted 7273 | -7/Factory | Self-destructed Last Messages --------------- Scanning: Imp. Trap Extractor... Scan incomplete, additional scanning required. >>Scanalyze Scanning: Imp. Trap Extractor... Scan incomplete, additional scanning required. >>Scanalyze Scanning: Imp. Trap Extractor... Schematic downloaded. 07231_ ALERT: Suspicious intruders detected, dispatching Specialist reinforcements to area. 07252_ P-60 Hacker suffers critical hit (Destroy). 07252_ Destroyed Shock Rifle. 07255_ ALERT: Cargo convoy interrupted, initiating access lockdown. 07255_ Destroyed Gravmag System. 07262_ U-05 Engineer builds a Wall. 07265_ Destroyed Gravmag System. 07268_ Hvy. Assault Rifle destroyed. 07271_ P-60 Hacker destroyed. 07271_ Trap Scanner destroyed. 07272_ U-05 Engineer builds a Wall. Map ----- +----------------------------------------------------+ | | | | | | | | | | | ?????????????????????????????????????????????????? | | ?????????????????????????????????????????????????? | | ????############?????????????????????????????????? | | ????############?????????????????????????????????? | | ????## ##????????????#############????????? | | ????##[ ##????????????#############????????? | | ????## """ ################ ^ T ##????????? | | ????## """ [ ################ """ ##????????? | | ????## """ #### #### """ ##????????? | | ????## "" #### """ #### """ /##????????? | | ###### "" + + """ #### # ????????? | | ###### = #### """ ####^ #"????????? | | # #### #### ^ #"????????? | | ##+########## """ #### #"????????? | | ##### """ ##########+### ????????? | | ##?## """ ######## # # ?? | | ##?## ######## ##+##### ?? | | ## #########+########### | | ## ####### | | #### | | #### " @ | | ####### u% % u##k # | | ################# ## # | | T##################%#### x x # | | ### ? #; ####+### ? | | ##### """" """? ## ## ##/######## ?? | | ##### """" """" ## ## # ### ?? | | ##?## """" """" ## ## # ?? ????? ######?? | | ##?## """" """" ## ## "S # ??? ! ##? ### ?? | | ##?## ## ## """ # ???? ##?????????? | | ##?## !! ## ## "" # ????? ##?????????? | | ##?## [ !! ## ## # ?????????????????? | | ##?## !! ## ######## ?????????????????? | | ##?## ##?######## ?????????????????? | | ##?## ##???????????????????????????? | | ##### ##???????????????????????????? | | ###########+####### ##????????????????????????? | | ##### ##????????????????????????? | | ##????????????????????????? | | ########????????????????????????? | | ####+######### ########????????????????????????? | | ##### ##??????????????????????????????? | | """"" ##### ##??????????????????????????????? | | ""T"" ##### ##??????????????????????????????? | | + #######?????????????????????????? | +----------------------------------------------------+ Best States ------------- Heat Dissipation 45 Energy Generation 14 Energy Capacity 265 Matter Stores 300 Matter Capacity 300 Sight Range 16 Terrain Scan Density 10 Armor Coverage 300 Power Shielding 66 Propulsion Shielding 66 Weapon Shielding 33 Evasion (%) 42 Recoil Reduction 1 Offensive Hacking 10 Relay Coupler Types 2 Relay Coupler Value 28 Trap Extractor Capacity 6 Item Schematics ----------------- Arm. Wheel | -8/Materials | Hacked Huge Storage Unit | -8/Materials | Hacked Adv. EMP Blaster | -8/Materials | Scanalyzed Imp. Trap Extractor | -7/Factory | Scanalyzed Robot Schematics ------------------ None Fabricated ------------ Nothing Repaired ---------- Wheel | 17% | -8/Materials Particle Cannon | 27% | -8/Materials Particle Cannon | 33% | -8/Materials Com. Wheel | 33% | -8/Materials Studied --------- Com. Wheel | -7/Factory | Hacked Wheel | -7/Factory | Hacked Alien Tech Used ----------------- None Achievements -------------- None Challenges ------------ None Game ------ Seed MetaSixMicroactuators Manual? 0 Play Time 01:11:42 Cumulative 413.2 hours Start 2025.12.10 @ 16:04:09 End 2025.12.10 @ 18:27:17 Sessions 1 Manual Loads 0 Difficulty Rogue Special Mode None Game No. 411 Rogue 407 Adventurer 3 Explorer 1 Win Type - Total 5 Types 4/0/1/0/0/0/0/0/0/0 Lore% 86 Gallery% 80 Achievement% 69 Wizard Run 0 Options --------- Layout 0 ASCII 0 Keyboard 0 Movement Mouse Keybinds 0 Fullscreen 2 Font 18/SmallcapsGlow Map View 76x50 Zoom Use 0% Tactical HUD 1 Map Filters NONE Filters NONE Steam 1 RUN: a9216030-f3d3-47e9-8214-683fde8c81c4